[Event "*** Titled Tuesday Blitz"]
[Site "Chess.com"]
[Date "2018.12.04"]
[Round "10"]
[White "Schachmalanders"]
[Black "BIG_Pirate"]
[Result "0-1"]
[WhiteElo "2288"]
[BlackElo "2352"]
[TimeControl "180+2"]
[EndTime "15:16:31 PST"]
[Termination "BIG_Pirate won by resignation"]

1. e4 {[%clk 0:03:01.9]} 1... d5 {[%clk 0:03:01]} 2. exd5 {[%clk 0:03:02.8]}
2... Qxd5 {[%clk 0:03:02.9]} 3. Nc3 {[%clk 0:03:04.4]} 3... Qa5 {[%clk
0:03:03.7]} 4. d4 {[%clk 0:03:05.6]} 4... Nf6 {[%clk 0:03:04.7]} 5. Nf3 {[%clk
0:03:06.5]} 5... Bg4 {[%clk 0:03:05.5]} 6. h3 {[%clk 0:03:08.1]} 6... Bh5 {[%clk
0:03:06.7]} 7. g4 {[%clk 0:03:04.3]} 7... Bg6 {[%clk 0:03:07.6]} 8. Ne5 {[%clk
0:03:05.8]} 8... e6 {[%clk 0:03:09.2]} 9. h4 {[%clk 0:03:04.1]} 9... Bb4 {[%clk
0:03:06.2]} 10. Bd2 {[%clk 0:03:05]} 10... Nbd7 {[%clk 0:03:04.2]} 11. a3 {[%clk
0:03:04.3]} 11... Nxe5 {[%clk 0:02:43]} 12. axb4 {[%clk 0:02:57.6]} 12... Nf3+
{[%clk 0:02:44]} 13. Qxf3 {[%clk 0:02:44.8]} 13... Qxa1+ {[%clk 0:02:44.2]} 14.
Nd1 {[%clk 0:02:45.2]} 14... Be4 {[%clk 0:02:40.1]} 0-1

[Event "*** Titled Tuesday Blitz"]
[Site "Chess.com"]
[Date "2018.12.04"]
[Round "10"]
[White "Kimster98"]
[Black "gemarin"]
[Result "1-0"]
[WhiteElo "2554"]
[BlackElo "2051"]
[TimeControl "180+2"]
[EndTime "15:18:28 PST"]
[Termination "Kimster98 won by resignation"]

1. Nf3 {[%clk 0:03:01.9]} 1... c5 {[%clk 0:03:00.1]} 2. g3 {[%clk 0:03:03]} 2...
Nc6 {[%clk 0:03:00.9]} 3. Bg2 {[%clk 0:03:04.9]} 3... d5 {[%clk 0:03:00.3]} 4.
O-O {[%clk 0:03:06.8]} 4... Nf6 {[%clk 0:03:00.8]} 5. d4 {[%clk 0:03:08]} 5...
e6 {[%clk 0:02:56.3]} 6. c4 {[%clk 0:03:08]} 6... dxc4 {[%clk 0:02:55.9]} 7.
dxc5 {[%clk 0:03:07.1]} 7... Qxd1 {[%clk 0:02:55.4]} 8. Rxd1 {[%clk 0:03:09]}
8... Bxc5 {[%clk 0:02:56.3]} 9. Nbd2 {[%clk 0:03:09.3]} 9... Ng4 {[%clk
0:02:13.9]} 10. e3 {[%clk 0:03:00.1]} 10... Nge5 {[%clk 0:02:01.5]} 11. Nxe5
{[%clk 0:02:58.9]} 11... Nxe5 {[%clk 0:02:02.1]} 12. Ne4 {[%clk 0:02:52.2]}
12... Bb4 {[%clk 0:01:51.1]} 13. Bd2 {[%clk 0:02:33.6]} 13... a5 {[%clk
0:01:47.7]} 14. Bxb4 {[%clk 0:02:31.2]} 14... axb4 {[%clk 0:01:48.1]} 15. f4
{[%clk 0:02:26.1]} 15... Nd3 {[%clk 0:01:47.4]} 16. Nd6+ {[%clk 0:02:26.8]}
16... Ke7 {[%clk 0:01:46.6]} 17. Nxc4 {[%clk 0:02:28.7]} 17... b5 {[%clk
0:01:39.8]} 18. Nb6 {[%clk 0:02:20.3]} 18... Nxb2 {[%clk 0:01:38.8]} 19. Bxa8
{[%clk 0:02:16.6]} 19... Nxd1 {[%clk 0:01:37.4]} 20. Rxd1 {[%clk 0:02:18.5]} 1-0

[Event "*** Titled Tuesday Blitz"]
[Site "Chess.com"]
[Date "2018.12.04"]
[Round "10"]
[White "Kawhi_Leonard2"]
[Black "Morshynska"]
[Result "0-1"]
[WhiteElo "2250"]
[BlackElo "2078"]
[TimeControl "180+2"]
[EndTime "15:19:13 PST"]
[Termination "Morshynska won by resignation"]

1. e4 {[%clk 0:03:01.9]} 1... e5 {[%clk 0:02:55]} 2. Nf3 {[%clk 0:03:02.6]} 2...
Nc6 {[%clk 0:02:55.5]} 3. Bb5 {[%clk 0:03:03.3]} 3... a6 {[%clk 0:02:56.3]} 4.
Bxc6 {[%clk 0:03:04.6]} 4... dxc6 {[%clk 0:02:58.2]} 5. O-O {[%clk 0:03:05.6]}
5... Qf6 {[%clk 0:02:54.6]} 6. d4 {[%clk 0:03:04.8]} 6... exd4 {[%clk
0:02:55.4]} 7. Bg5 {[%clk 0:02:50.5]} 7... Qd6 {[%clk 0:02:52.8]} 8. Qxd4 {[%clk
0:02:43.8]} 8... Qxd4 {[%clk 0:02:46.3]} 9. Nxd4 {[%clk 0:02:44.6]} 9... Bd7
{[%clk 0:02:40.2]} 10. Re1 {[%clk 0:02:36.1]} 10... h6 {[%clk 0:02:30.3]} 11.
Be3 {[%clk 0:02:34.9]} 11... Nf6 {[%clk 0:02:28.8]} 12. f3 {[%clk 0:02:34.8]}
12... O-O-O {[%clk 0:02:26.7]} 13. Nb3 {[%clk 0:02:35.9]} 13... b6 {[%clk
0:02:24.2]} 14. a4 {[%clk 0:02:36.2]} 14... a5 {[%clk 0:02:18.1]} 15. N1d2
{[%clk 0:02:32]} 15... c5 {[%clk 0:02:04]} 16. c4 {[%clk 0:02:30.9]} 16... g5
{[%clk 0:01:54.6]} 17. Nb1 {[%clk 0:02:28.2]} 17... Bg7 {[%clk 0:01:51.6]} 18.
Nc3 {[%clk 0:02:28.8]} 18... c6 {[%clk 0:01:40.1]} 19. Rad1 {[%clk 0:02:15.6]}
19... Be6 {[%clk 0:01:39]} 20. Nd2 {[%clk 0:01:48.4]} 20... Nd7 {[%clk
0:01:28.2]} 21. b3 {[%clk 0:01:43.2]} 21... Bxc3 {[%clk 0:01:26.8]} 0-1

[Event "*** Titled Tuesday Blitz"]
[Site "Chess.com"]
[Date "2018.12.04"]
[Round "10"]
[White "Anar_Aliakbarov"]
[Black "vinniethepooh"]
[Result "0-1"]
[WhiteElo "2544"]
[BlackElo "2438"]
[TimeControl "180+2"]
[EndTime "15:19:50 PST"]
[Termination "vinniethepooh won by resignation"]

1. d4 {[%clk 0:03:01.9]} 1... d5 {[%clk 0:03:01]} 2. c4 {[%clk 0:02:56.4]} 2...
Nf6 {[%clk 0:03:02.3]} 3. Nc3 {[%clk 0:02:53.1]} 3... g6 {[%clk 0:03:03.3]} 4.
Nf3 {[%clk 0:02:52.8]} 4... Bg7 {[%clk 0:03:04.1]} 5. Qb3 {[%clk 0:02:53.9]}
5... c6 {[%clk 0:03:02]} 6. Bg5 {[%clk 0:02:53.7]} 6... dxc4 {[%clk 0:02:58.1]}
7. Qxc4 {[%clk 0:02:55.6]} 7... O-O {[%clk 0:02:58.7]} 8. e4 {[%clk 0:02:56.4]}
8... Bg4 {[%clk 0:02:44]} 9. e5 {[%clk 0:02:56.6]} 9... Nd5 {[%clk 0:02:39]} 10.
Nxd5 {[%clk 0:02:55.9]} 10... cxd5 {[%clk 0:02:38.3]} 11. Qb3 {[%clk 0:02:56.6]}
11... Bxf3 {[%clk 0:02:27]} 12. Qxf3 {[%clk 0:02:45.5]} 12... Nc6 {[%clk
0:02:27.7]} 13. O-O-O {[%clk 0:02:33.8]} 13... f6 {[%clk 0:02:08.8]} 14. exf6
{[%clk 0:02:33.2]} 14... Bxf6 {[%clk 0:02:10.5]} 15. Bxf6 {[%clk 0:02:33.1]}
15... Rxf6 {[%clk 0:02:12.4]} 16. Qe3 {[%clk 0:02:32.8]} 16... Nb4 {[%clk
0:01:51.6]} 17. Kb1 {[%clk 0:02:30.6]} 17... Qc8 {[%clk 0:01:49.5]} 18. Bd3
{[%clk 0:02:26.6]} 18... Nxd3 {[%clk 0:01:29]} 19. Rxd3 {[%clk 0:02:25.5]} 19...
Qf5 {[%clk 0:01:30.3]} 20. f3 {[%clk 0:02:25.5]} 20... Re6 {[%clk 0:01:21.4]}
21. Qd2 {[%clk 0:02:24.5]} 21... Rc8 {[%clk 0:01:22.7]} 22. a3 {[%clk
0:02:25.2]} 22... Rc4 {[%clk 0:01:13.9]} 23. Ka2 {[%clk 0:02:25.4]} 23... Rec6
{[%clk 0:01:02.6]} 24. Rd1 {[%clk 0:02:22.8]} 24... Rc2 {[%clk 0:00:58.3]} 25.
Qb4 {[%clk 0:02:24.1]} 25... Rb6 {[%clk 0:00:53]} 26. Qxe7 {[%clk 0:02:14.4]}
26... Rbxb2+ {[%clk 0:00:53.8]} 27. Ka1 {[%clk 0:02:15.1]} 27... Ra2+ {[%clk
0:00:55.1]} 28. Kb1 {[%clk 0:02:16.6]} 28... Rcb2+ {[%clk 0:00:55.9]} 29. Kc1
{[%clk 0:02:18.1]} 29... Qc8+ {[%clk 0:00:48]} 0-1

[Event "*** Titled Tuesday Blitz"]
[Site "Chess.com"]
[Date "2018.12.04"]
[Round "10"]
[White "JSMastropiero"]
[Black "aquaticpineapples"]
[Result "0-1"]
[WhiteElo "2144"]
[BlackElo "2080"]
[TimeControl "180+2"]
[EndTime "15:20:12 PST"]
[Termination "aquaticpineapples won by resignation"]

1. d4 {[%clk 0:03:01.9]} 1... d5 {[%clk 0:03:00.8]} 2. c4 {[%clk 0:03:02.6]}
2... e6 {[%clk 0:03:01.8]} 3. Nf3 {[%clk 0:03:03.4]} 3... Nf6 {[%clk 0:03:03.1]}
4. Nc3 {[%clk 0:03:04.3]} 4... Be7 {[%clk 0:03:03.9]} 5. Bf4 {[%clk 0:03:04.9]}
5... O-O {[%clk 0:03:04.1]} 6. e3 {[%clk 0:03:05.6]} 6... a6 {[%clk 0:03:03]} 7.
Qc2 {[%clk 0:03:02.4]} 7... b6 {[%clk 0:03:00.5]} 8. cxd5 {[%clk 0:02:58.6]}
8... exd5 {[%clk 0:03:01]} 9. h3 {[%clk 0:02:59.4]} 9... Bb7 {[%clk 0:03:00.6]}
10. Rd1 {[%clk 0:03:00]} 10... Re8 {[%clk 0:02:57.3]} 11. Bd3 {[%clk 0:02:59.5]}
11... Nbd7 {[%clk 0:02:53]} 12. O-O {[%clk 0:03:00]} 12... Rc8 {[%clk
0:02:51.5]} 13. Ne5 {[%clk 0:02:58.6]} 13... c5 {[%clk 0:02:50.4]} 14. Bf5
{[%clk 0:02:57]} 14... g6 {[%clk 0:02:37.7]} 15. Nxd7 {[%clk 0:02:47.9]} 15...
Nxd7 {[%clk 0:02:34.6]} 16. Bg4 {[%clk 0:02:40.5]} 16... h5 {[%clk 0:02:22.9]}
17. Bf3 {[%clk 0:02:39.9]} 17... c4 {[%clk 0:02:03]} 18. Nxd5 {[%clk 0:02:35.1]}
18... Bxd5 {[%clk 0:01:57.4]} 19. Bxd5 {[%clk 0:02:35.9]} 19... Nf6 {[%clk
0:01:52.1]} 20. Qxg6+ {[%clk 0:02:35.9]} 20... Kh8 {[%clk 0:01:48.5]} 21. Bxf7
{[%clk 0:02:36.7]} 21... Bf8 {[%clk 0:01:45.8]} 22. Be5 {[%clk 0:02:30.8]} 22...
Bg7 {[%clk 0:01:42.3]} 23. Bxe8 {[%clk 0:02:20.6]} 23... Qxe8 {[%clk 0:01:33.1]}
24. Qxe8+ {[%clk 0:02:18.7]} 24... Rxe8 {[%clk 0:01:30.6]} 25. Bxf6 {[%clk
0:02:14.8]} 25... Bxf6 {[%clk 0:01:32.5]} 26. Rc1 {[%clk 0:02:14.2]} 26... b5
{[%clk 0:01:32.5]} 27. b3 {[%clk 0:02:14.9]} 27... Rc8 {[%clk 0:01:28.1]} 28.
bxc4 {[%clk 0:02:15.8]} 28... bxc4 {[%clk 0:01:29]} 29. Rc3 {[%clk 0:02:15.9]}
29... Be7 {[%clk 0:01:27.7]} 30. Rfc1 {[%clk 0:02:16.9]} 30... Kg7 {[%clk
0:01:26.2]} 31. Rxc4 {[%clk 0:02:18.2]} 31... Rb8 {[%clk 0:01:27.5]} 32. Rc7
{[%clk 0:02:18]} 32... Kf7 {[%clk 0:01:28.3]} 33. Ra7 {[%clk 0:02:16.2]} 33...
Ke6 {[%clk 0:01:27.9]} 34. Rc6+ {[%clk 0:02:16.5]} 34... Bd6 {[%clk 0:01:28.9]}
35. Raxa6 {[%clk 0:02:16.9]} 35... Rb1+ {[%clk 0:01:29.8]} 0-1

[Event "*** Titled Tuesday Blitz"]
[Site "Chess.com"]
[Date "2018.12.04"]
[Round "10"]
[White "eldur16"]
[Black "iaraldinho"]
[Result "0-1"]
[WhiteElo "2633"]
[BlackElo "2506"]
[TimeControl "180+2"]
[EndTime "15:20:28 PST"]
[Termination "iaraldinho won by resignation"]

1. e4 {[%clk 0:03:01.9]} 1... c5 {[%clk 0:02:54.7]} 2. Ne2 {[%clk 0:03:02]} 2...
a6 {[%clk 0:02:55.3]} 3. g3 {[%clk 0:03:01.1]} 3... Nc6 {[%clk 0:02:55.7]} 4.
Bg2 {[%clk 0:03:01.7]} 4... e6 {[%clk 0:02:55.9]} 5. d4 {[%clk 0:03:01.8]} 5...
cxd4 {[%clk 0:02:56.5]} 6. Nxd4 {[%clk 0:03:02.5]} 6... Qc7 {[%clk 0:02:58]} 7.
Nc3 {[%clk 0:03:00.9]} 7... Nxd4 {[%clk 0:02:59.2]} 8. Qxd4 {[%clk 0:03:01.5]}
8... Nf6 {[%clk 0:03:00.3]} 9. O-O {[%clk 0:02:59.7]} 9... Bc5 {[%clk
0:03:01.3]} 10. Bf4 {[%clk 0:02:58.6]} 10... d6 {[%clk 0:03:02.6]} 11. Qd2
{[%clk 0:02:59]} 11... h6 {[%clk 0:03:03.9]} 12. Rad1 {[%clk 0:02:53.1]} 12...
e5 {[%clk 0:03:05.2]} 13. Be3 {[%clk 0:02:53.4]} 13... Bg4 {[%clk 0:03:06.8]}
14. Rc1 {[%clk 0:02:49.9]} 14... O-O {[%clk 0:03:05.1]} 15. h3 {[%clk
0:02:50.1]} 15... Be6 {[%clk 0:03:05.5]} 16. a3 {[%clk 0:02:47.2]} 16... Rfd8
{[%clk 0:03:03.9]} 17. Kh2 {[%clk 0:02:42.4]} 17... Rac8 {[%clk 0:03:01.5]} 18.
f4 {[%clk 0:02:41.6]} 18... Qb6 {[%clk 0:02:51]} 19. Bxc5 {[%clk 0:02:26.7]}
19... dxc5 {[%clk 0:02:50]} 20. Qe3 {[%clk 0:02:05.7]} 20... Qxb2 {[%clk
0:02:50.1]} 21. fxe5 {[%clk 0:02:05]} 21... Nd7 {[%clk 0:02:50.3]} 22. Nd5
{[%clk 0:01:53.1]} 22... Bxd5 {[%clk 0:02:42.2]} 23. exd5 {[%clk 0:01:54.1]}
23... Qxe5 {[%clk 0:02:42.6]} 24. Qb3 {[%clk 0:01:49.7]} 24... b5 {[%clk
0:02:40.1]} 25. c4 {[%clk 0:01:49.4]} 25... Rb8 {[%clk 0:02:38.2]} 26. Rf4
{[%clk 0:01:43.7]} 26... Nf6 {[%clk 0:02:28.5]} 27. cxb5 {[%clk 0:01:36.3]}
27... Rxb5 {[%clk 0:02:28.9]} 28. Qa4 {[%clk 0:01:30]} 28... Rb2 {[%clk
0:02:26.6]} 29. Qxa6 {[%clk 0:01:25.9]} 29... Rxd5 {[%clk 0:02:11.4]} 30. Rg1
{[%clk 0:00:54.9]} 30... Rdd2 {[%clk 0:02:10.5]} 31. Kh1 {[%clk 0:00:36.8]}
31... Nh5 {[%clk 0:02:08.7]} 32. Qc8+ {[%clk 0:00:32.3]} 32... Kh7 {[%clk
0:02:09.3]} 33. Be4+ {[%clk 0:00:32.2]} 33... Qxe4+ {[%clk 0:02:10.7]} 0-1

[Event "*** Titled Tuesday Blitz"]
[Site "Chess.com"]
[Date "2018.12.04"]
[Round "10"]
[White "Bad_left_hook"]
[Black "Jooonaaas1996"]
[Result "1-0"]
[WhiteElo "2515"]
[BlackElo "2299"]
[TimeControl "180+2"]
[EndTime "15:20:40 PST"]
[Termination "Bad_left_hook won by resignation"]

1. d4 {[%clk 0:03:01.9]} 1... Nf6 {[%clk 0:02:59.9]} 2. c4 {[%clk 0:03:01.3]}
2... e6 {[%clk 0:03:00.2]} 3. Nc3 {[%clk 0:03:01.5]} 3... d5 {[%clk 0:03:01.4]}
4. cxd5 {[%clk 0:03:01.6]} 4... exd5 {[%clk 0:03:02.1]} 5. Bg5 {[%clk
0:03:02.6]} 5... Bb4 {[%clk 0:02:59.2]} 6. e3 {[%clk 0:02:55.9]} 6... h6 {[%clk
0:02:58.9]} 7. Bxf6 {[%clk 0:02:42.9]} 7... Qxf6 {[%clk 0:03:00.8]} 8. Qb3
{[%clk 0:02:41.1]} 8... Nc6 {[%clk 0:02:48.7]} 9. Bb5 {[%clk 0:02:34.7]} 9...
O-O {[%clk 0:02:40]} 10. Bxc6 {[%clk 0:02:32.1]} 10... Bxc3+ {[%clk 0:02:40.5]}
11. Qxc3 {[%clk 0:02:31.2]} 11... bxc6 {[%clk 0:02:42]} 12. Rc1 {[%clk
0:02:31.4]} 12... Qg6 {[%clk 0:02:38.4]} 13. Ne2 {[%clk 0:02:10.3]} 13... Qxg2
{[%clk 0:02:28.7]} 14. Rg1 {[%clk 0:02:10.3]} 14... Qxh2 {[%clk 0:02:29.1]} 15.
Qxc6 {[%clk 0:02:08.8]} 15... Be6 {[%clk 0:02:30.1]} 16. Qxc7 {[%clk 0:02:02.9]}
16... Qh4 {[%clk 0:02:13.3]} 17. Qe5 {[%clk 0:01:58.2]} 17... g6 {[%clk
0:02:06.1]} 18. Nf4 {[%clk 0:01:51.7]} 18... Qh2 {[%clk 0:01:37.8]} 19. Rxg6+
{[%clk 0:01:27.5]} 19... fxg6 {[%clk 0:01:35.2]} 20. Qxe6+ {[%clk 0:01:27.2]}
20... Kh8 {[%clk 0:01:26.5]} 21. Qe5+ {[%clk 0:00:56.8]} 21... Kg8 {[%clk
0:01:25]} 22. Rc7 {[%clk 0:00:37.6]} 1-0

[Event "*** Titled Tuesday Blitz"]
[Site "Chess.com"]
[Date "2018.12.04"]
[Round "10"]
[White "David_Klein"]
[Black "wadsy27"]
[Result "1-0"]
[WhiteElo "2613"]
[BlackElo "2444"]
[TimeControl "180+2"]
[EndTime "15:20:53 PST"]
[Termination "David_Klein won by resignation"]

1. e4 {[%clk 0:03:01.9]} 1... c5 {[%clk 0:02:59.8]} 2. Nf3 {[%clk 0:03:03]} 2...
e6 {[%clk 0:02:59.1]} 3. g3 {[%clk 0:03:03.4]} 3... Nc6 {[%clk 0:02:57]} 4. Bg2
{[%clk 0:03:04.6]} 4... Nf6 {[%clk 0:02:58.5]} 5. Qe2 {[%clk 0:03:05.6]} 5... d6
{[%clk 0:02:56.2]} 6. c3 {[%clk 0:03:04.9]} 6... e5 {[%clk 0:02:56.7]} 7. O-O
{[%clk 0:03:05]} 7... Be7 {[%clk 0:02:53.3]} 8. a3 {[%clk 0:03:06.1]} 8... h5
{[%clk 0:02:51]} 9. h3 {[%clk 0:03:04.5]} 9... h4 {[%clk 0:02:45.9]} 10. g4
{[%clk 0:02:53.4]} 10... Nh7 {[%clk 0:02:46.1]} 11. d3 {[%clk 0:02:50.1]} 11...
Ng5 {[%clk 0:02:45.8]} 12. b4 {[%clk 0:02:43.6]} 12... Nxf3+ {[%clk 0:02:30.1]}
13. Qxf3 {[%clk 0:02:42.7]} 13... Bg5 {[%clk 0:02:31.5]} 14. Be3 {[%clk
0:02:13.6]} 14... b6 {[%clk 0:02:24]} 15. Nd2 {[%clk 0:02:13.2]} 15... Be6
{[%clk 0:02:20.6]} 16. Qe2 {[%clk 0:02:01.2]} 16... O-O {[%clk 0:02:14.9]} 17.
Nf3 {[%clk 0:02:00.8]} 17... Be7 {[%clk 0:02:10.2]} 18. d4 {[%clk 0:01:47.7]}
18... cxd4 {[%clk 0:01:52.1]} 19. cxd4 {[%clk 0:01:48.3]} 19... exd4 {[%clk
0:01:51.9]} 20. Nxd4 {[%clk 0:01:48.5]} 20... Nxd4 {[%clk 0:01:53.5]} 21. Bxd4
{[%clk 0:01:49.5]} 21... Rc8 {[%clk 0:01:55.1]} 22. Rfd1 {[%clk 0:01:42.8]}
22... Bg5 {[%clk 0:01:51.2]} 23. Be3 {[%clk 0:01:40.1]} 23... Qf6 {[%clk
0:01:46.6]} 24. Bxg5 {[%clk 0:01:34.9]} 24... Qxg5 {[%clk 0:01:47]} 25. Rxd6
{[%clk 0:01:36.4]} 25... Qe5 {[%clk 0:01:46.5]} 26. Rad1 {[%clk 0:01:36.2]}
26... Rc3 {[%clk 0:01:46.3]} 27. Qb2 {[%clk 0:01:02.1]} 27... Rfc8 {[%clk
0:01:42.5]} 28. Rd8+ {[%clk 0:00:57.2]} 28... Rxd8 {[%clk 0:01:40.5]} 29. Rxd8+
{[%clk 0:00:59.1]} 29... Kh7 {[%clk 0:01:41.2]} 30. Rd3 {[%clk 0:00:55.6]} 30...
Rc5 {[%clk 0:01:33.5]} 31. Qxe5 {[%clk 0:00:56]} 31... Rxe5 {[%clk 0:01:35.4]}
32. f4 {[%clk 0:00:57.6]} 32... Rb5 {[%clk 0:01:36.7]} 33. Rd4 {[%clk
0:00:54.6]} 33... a5 {[%clk 0:01:29.2]} 34. Bf1 {[%clk 0:00:55.3]} 34... axb4
{[%clk 0:01:30.4]} 35. axb4 {[%clk 0:00:55.5]} 1-0

[Event "*** Titled Tuesday Blitz"]
[Site "Chess.com"]
[Date "2018.12.04"]
[Round "10"]
[White "dmosesov"]
[Black "Mikhail_Golubev"]
[Result "1-0"]
[WhiteElo "2348"]
[BlackElo "2450"]
[TimeControl "180+2"]
[EndTime "15:21:06 PST"]
[Termination "dmosesov won by resignation"]

1. e4 {[%clk 0:03:01]} 1... c5 {[%clk 0:02:59.7]} 2. Nf3 {[%clk 0:03:02.1]} 2...
d6 {[%clk 0:03:00.1]} 3. d4 {[%clk 0:03:02.9]} 3... Nf6 {[%clk 0:03:01.1]} 4.
Nc3 {[%clk 0:03:03.6]} 4... cxd4 {[%clk 0:03:02.1]} 5. Nxd4 {[%clk 0:03:05.5]}
5... g6 {[%clk 0:03:01.6]} 6. Be3 {[%clk 0:03:03.4]} 6... Bg7 {[%clk 0:03:02.4]}
7. f3 {[%clk 0:03:04.6]} 7... a6 {[%clk 0:03:02.4]} 8. Qd2 {[%clk 0:03:05.7]}
8... h5 {[%clk 0:03:01.5]} 9. O-O-O {[%clk 0:03:05.5]} 9... Nbd7 {[%clk
0:02:58.8]} 10. Bc4 {[%clk 0:03:01]} 10... Qc7 {[%clk 0:02:59.8]} 11. Bb3 {[%clk
0:02:53.9]} 11... b5 {[%clk 0:03:00.8]} 12. Rhe1 {[%clk 0:02:42.5]} 12... Bb7
{[%clk 0:03:00.7]} 13. Bg5 {[%clk 0:02:28.7]} 13... Nb6 {[%clk 0:02:53.7]} 14.
f4 {[%clk 0:01:53.7]} 14... b4 {[%clk 0:02:36.7]} 15. Nd5 {[%clk 0:01:54.7]}
15... Bxd5 {[%clk 0:02:21.9]} 16. exd5 {[%clk 0:01:54.6]} 16... a5 {[%clk
0:01:50.8]} 17. Nc6 {[%clk 0:01:43.6]} 17... a4 {[%clk 0:01:47.5]} 18. Rxe7+
{[%clk 0:01:38.3]} 18... Qxe7 {[%clk 0:01:47.5]} 19. Nxe7 {[%clk 0:01:40.2]}
19... axb3 {[%clk 0:01:48.7]} 20. cxb3 {[%clk 0:01:41.7]} 20... Kxe7 {[%clk
0:01:37.7]} 21. Qe3+ {[%clk 0:01:41.1]} 21... Kd7 {[%clk 0:01:18.2]} 22. Qxb6
{[%clk 0:01:41.8]} 22... Rhc8+ {[%clk 0:01:03.2]} 23. Kb1 {[%clk 0:01:42.3]}
23... Rab8 {[%clk 0:00:20.9]} 24. Qa7+ {[%clk 0:01:42.9]} 24... Ke8 {[%clk
0:00:21.9]} 25. Re1+ {[%clk 0:01:37.9]} 25... Kf8 {[%clk 0:00:23]} 26. Qe7+
{[%clk 0:01:37.9]} 26... Kg8 {[%clk 0:00:22.7]} 27. Bxf6 {[%clk 0:01:39.3]}
27... Bf8 {[%clk 0:00:18.4]} 28. Qe4 {[%clk 0:01:35.8]} 1-0

[Event "*** Titled Tuesday Blitz"]
[Site "Chess.com"]
[Date "2018.12.04"]
[Round "10"]
[White "PchelkinVK"]
[Black "NikolaGry"]
[Result "0-1"]
[WhiteElo "2567"]
[BlackElo "2652"]
[TimeControl "180+2"]
[EndTime "15:21:08 PST"]
[Termination "NikolaGry won by resignation"]

1. d4 {[%clk 0:02:55.6]} 1... d5 {[%clk 0:03:00.4]} 2. Nc3 {[%clk 0:02:56.2]}
2... Nf6 {[%clk 0:02:59.9]} 3. Bf4 {[%clk 0:02:57.3]} 3... c6 {[%clk 0:02:56.7]}
4. Nf3 {[%clk 0:02:58.5]} 4... Bf5 {[%clk 0:02:57.4]} 5. e3 {[%clk 0:02:56.4]}
5... e6 {[%clk 0:02:58.2]} 6. Ne5 {[%clk 0:02:57.6]} 6... h6 {[%clk 0:02:53.6]}
7. g4 {[%clk 0:02:24]} 7... Bh7 {[%clk 0:02:53.9]} 8. Bd3 {[%clk 0:02:23.5]}
8... Bxd3 {[%clk 0:02:42.5]} 9. Qxd3 {[%clk 0:02:25.4]} 9... Nfd7 {[%clk
0:02:43]} 10. O-O-O {[%clk 0:02:11.8]} 10... Nxe5 {[%clk 0:02:43.3]} 11. Bxe5
{[%clk 0:02:13.7]} 11... Nd7 {[%clk 0:02:43.9]} 12. Bg3 {[%clk 0:02:15.1]} 12...
Qa5 {[%clk 0:02:42.1]} 13. e4 {[%clk 0:02:09]} 13... Bb4 {[%clk 0:02:33.8]} 14.
exd5 {[%clk 0:02:10]} 14... cxd5 {[%clk 0:02:34.2]} 15. Nb5 {[%clk 0:02:03]}
15... O-O {[%clk 0:02:19.4]} 16. g5 {[%clk 0:01:55]} 16... a6 {[%clk 0:01:35.5]}
17. Nd6 {[%clk 0:01:21.2]} 17... Qxa2 {[%clk 0:01:18.2]} 18. c3 {[%clk
0:01:19.5]} 18... Rfc8 {[%clk 0:01:07.5]} 19. Nxc8 {[%clk 0:01:14.9]} 19... Rxc8
{[%clk 0:01:08.1]} 20. gxh6 {[%clk 0:00:55.7]} 20... Rxc3+ {[%clk 0:01:02.9]}
21. Qxc3 {[%clk 0:00:46.6]} 21... Bxc3 {[%clk 0:01:03.6]} 22. bxc3 {[%clk
0:00:48.5]} 22... Nb6 {[%clk 0:01:02.2]} 0-1

[Event "*** Titled Tuesday Blitz"]
[Site "Chess.com"]
[Date "2018.12.04"]
[Round "10"]
[White "Firouzja2003"]
[Black "gmcorrales"]
[Result "1-0"]
[WhiteElo "3003"]
[BlackElo "2799"]
[TimeControl "180+2"]
[EndTime "15:21:23 PST"]
[Termination "Firouzja2003 won by resignation"]

1. e4 {[%clk 0:03:01.9]} 1... c5 {[%clk 0:03:00.6]} 2. Nf3 {[%clk 0:03:03.2]}
2... d6 {[%clk 0:03:01.6]} 3. d4 {[%clk 0:03:04.5]} 3... cxd4 {[%clk 0:03:03.5]}
4. Nxd4 {[%clk 0:03:06.4]} 4... Nf6 {[%clk 0:03:05]} 5. Nc3 {[%clk 0:03:06.1]}
5... a6 {[%clk 0:03:06.4]} 6. Bg5 {[%clk 0:03:06.8]} 6... e6 {[%clk 0:03:06.7]}
7. f4 {[%clk 0:03:08.4]} 7... Qb6 {[%clk 0:03:07.9]} 8. a3 {[%clk 0:03:07.5]}
8... Nc6 {[%clk 0:03:05.4]} 9. Nb3 {[%clk 0:03:00.2]} 9... Be7 {[%clk
0:03:04.9]} 10. Qd2 {[%clk 0:03:00.6]} 10... h6 {[%clk 0:03:04.2]} 11. Bxf6
{[%clk 0:02:58.8]} 11... Bxf6 {[%clk 0:03:04.6]} 12. O-O-O {[%clk 0:02:59.9]}
12... O-O {[%clk 0:02:46.4]} 13. g4 {[%clk 0:02:59.2]} 13... Bh4 {[%clk
0:02:11.4]} 14. Kb1 {[%clk 0:02:57.4]} 14... Rd8 {[%clk 0:02:11.6]} 15. Qd3
{[%clk 0:02:51.5]} 15... Qf2 {[%clk 0:01:37.7]} 16. Qh3 {[%clk 0:02:32.1]} 16...
Bf6 {[%clk 0:01:37.3]} 17. Qg3 {[%clk 0:02:33.3]} 17... Qxg3 {[%clk 0:01:36.9]}
18. hxg3 {[%clk 0:02:35.2]} 18... Bxc3 {[%clk 0:01:34.8]} 19. bxc3 {[%clk
0:02:37.1]} 19... b6 {[%clk 0:01:31]} 20. Rh2 {[%clk 0:02:31.3]} 20... Ra7
{[%clk 0:01:15.6]} 21. Rhd2 {[%clk 0:02:21.9]} 21... Rad7 {[%clk 0:01:16.1]} 22.
Nd4 {[%clk 0:02:22.9]} 22... Na5 {[%clk 0:01:04.5]} 23. Nb3 {[%clk 0:02:23.9]}
23... Nc6 {[%clk 0:01:05]} 24. c4 {[%clk 0:02:24.1]} 24... Kf8 {[%clk
0:01:04.2]} 25. Bg2 {[%clk 0:02:22.1]} 25... Bb7 {[%clk 0:01:03.5]} 26. c5
{[%clk 0:02:22.9]} 26... bxc5 {[%clk 0:00:31.4]} 27. Nxc5 {[%clk 0:02:22.9]}
27... Rc7 {[%clk 0:00:32.7]} 28. Rxd6 {[%clk 0:02:22.1]} 28... Rb8 {[%clk
0:00:33.2]} 29. Kc1 {[%clk 0:02:16.5]} 29... Bc8 {[%clk 0:00:27.8]} 30. e5
{[%clk 0:01:56.3]} 30... Na5 {[%clk 0:00:26.5]} 31. Rd8+ {[%clk 0:01:54.9]}
31... Ke7 {[%clk 0:00:27.7]} 32. Nxa6 {[%clk 0:01:56.3]} 32... Nb3+ {[%clk
0:00:16.7]} 33. Kb2 {[%clk 0:01:57]} 33... Nd2+ {[%clk 0:00:03.1]} 34. Nxb8
{[%clk 0:01:57.1]} 34... Nc4+ {[%clk 0:00:04]} 35. Kc1 {[%clk 0:01:58.1]} 35...
Ne3 {[%clk 0:00:05.8]} 36. Nc6+ {[%clk 0:01:55.2]} 36... Rxc6 {[%clk 0:00:05.4]}
37. Bxc6 {[%clk 0:01:57.1]} 1-0